bitfinex/quotes_ETHUSD_20220220
["timestamp","ask_amount","ask_price","bid_price","bid_amount"]
[1645397713117,3.5,2649.5,2648.3,1.98723088]
[1645397713309,0.3,2649.4,2648.3,0.0031798]
[1645397713508,0.00374639,2648.8,2648.3,0.0031798]
[1645397714310,9.56951,2649.5,2648.3,0.0031798]
[1645397714513,3.01594892,2648.8,2648.3,0.0031798]
[1645397714718,0.45874646,2648.7,2648.3,7.98e-05]
[1645397714910,0.37794,2648.6,2648.3,7.98e-05]
[1645397715109,0.455,2648.5,2648.1,3.7930798]
[1645397715308,0.755,2648.5,2648.1,3.7930798]
[1645397715617,0.755,2648.5,2647.1,1.2179]
[1645397715618,13.52,2648.2,2646.5,1.2006]
[1645397715817,11.52,2647.8,2646.3,3.5579]
[1645397716211,3.61594892,2647.5,2646.3,3.5579]
[1645397716411,3.61594892,2647.5,2646.1,3.5]
[1645397716412,0.455,2647.4,2646.1,3.5]
[1645397716620,0.94576,2646.8,2645.5,17.6432]
[1645397716862,0.89576,2646.8,2645.6,1.98405108]
[1645397717062,0.455,2646.7,2645.7,3.5]
[1645397717669,0.455,2646.7,2645.6,1.98405108]
[1645397718064,0.455,2646.7,2646.1,1.98405108]
[1645397718065,0.94582,2646.5,2646.1,1.98405108]
[1645397718265,0.00244264,2646.3,2645.9,1.98405108]
[1645397719273,0.455,2646.7,2645.9,1.98405108]
[1645397719470,0.00244264,2646.2,2646.0,1.98405108]
[1645397720267,0.00244264,2646.2,2645.8,1.98405108]
[1645397720469,0.455,2646.7,2645.8,1.98405108]
[1645397720708,0.00244264,2646.2,2646.0,3.8]
[1645397720908,0.00244264,2646.2,2646.1,1.98405108]
[1645397721510,0.455,2646.7,2646.1,1.98405108]
[1645397721709,0.455,2646.7,2646.0,3.75]
[1645397721920,0.455,2646.7,2646.6,1.98405108]
[1645397722809,0.455,2646.7,2646.0,5.73405108]
[1645397723009,0.45592022,2646.7,2646.0,5.73405108]
[1645397723409,0.30092022,2646.7,2646.0,5.73405108]
[1645397723613,0.00092022,2646.7,2646.1,1.98405108]
[1645397723816,0.00092022,2646.7,2646.6,1.98405108]
[1645397724470,0.00374948,2646.5,2646.0,3.75]
[1645397724863,0.00374948,2646.5,2646.4,1.98405108]
[1645397725262,0.00092022,2646.7,2646.4,1.98405108]
[1645397725464,0.00374946,2646.6,2646.4,1.98405108]
[1645397725862,0.00374946,2646.6,2646.5,1.98405108]
[1645397726463,0.00092022,2646.7,2646.5,1.98405108]
[1645397726663,0.00466963,2646.7,2646.5,1.98405108]
[1645397727067,0.00466963,2646.7,2646.6,1.98405108]
[1645397727262,0.00466963,2646.7,2645.6,4.07231397]
[1645397727464,0.00466963,2646.7,2646.6,1.98405108]
[1645397727665,1.89114,2647.0,2646.5,1.98405108]
[1645397727861,1.2456,2647.0,2645.6,0.57231397]
[1645397728120,1.2456,2647.0,2645.8,1.98405108]
[1645397728121,1.8914,2646.9,2645.8,1.98405108]
[1645397728307,1.8914,2646.9,2646.2,1.98405108]
[1645397728710,1.8914,2646.9,2645.6,0.1889]
[1645397728906,1.8914,2646.9,2646.0,1.98405108]
[1645397728907,0.94564,2646.8,2646.0,1.98405108]
[1645397729109,0.00349869,2646.7,2646.0,1.98405108]
[1645397729713,1.00349869,2646.7,2646.0,1.98405108]
[1645397729907,0.00349869,2646.7,2646.0,1.98405108]
[1645397730108,1.0,2646.7,2646.0,1.98405108]
[1645397730308,0.00349879,2646.5,2645.7,1.98405108]
[1645397730512,0.9458914,2646.4,2645.5,14.1432]
[1645397731008,1.2458914,2646.4,2645.5,14.1432]
[1645397731309,0.3,2646.4,2645.5,14.1432]
[1645397731509,0.00349899,2646.1,2645.5,14.1432]
[1645397731711,0.00349899,2646.1,2645.7,1.98405108]
[1645397732362,1.89192,2646.1,2645.7,1.98405108]
[1645397732562,1.89192,2646.1,2645.5,3.5579]
[1645397732761,0.30349901,2646.0,2645.5,3.5579]
[1645397733359,0.30349901,2646.0,2645.8,1.98405108]
[1645397733560,1.89192,2646.1,2645.8,1.98405108]
[1645397733861,0.00351771,2645.9,2645.5,7.3579]
[1645397734361,0.64543771,2646.1,2645.5,7.3579]
[1645397735359,1.59131771,2646.1,2645.5,7.3579]
[1645397735608,1.59131771,2646.1,2645.8,1.98405108]
[1645397735803,1.59131771,2646.1,2645.5,7.3579]
[1645397736902,1.59131771,2646.1,2645.6,1.98405108]
[1645397737304,1.59131771,2646.1,2645.5,7.3579]
[1645397737507,0.00374968,2646.0,2645.5,7.35576253]
[1645397738208,6.51594892,2646.6,2645.5,7.35576253]
[1645397738209,3.97553997,2647.1,2645.6,2.0]
[1645397738409,0.455,2646.6,2645.7,3.51299862]
[1645397738606,2.34257,2647.0,2646.5,1.98405108]
[1645397738806,0.9457,2646.7,2646.5,1.98405108]
[1645397739205,1.2457,2646.7,2646.5,1.98405108]
[1645397739466,1.2457,2646.7,2646.2,1.98405108]
[1645397739667,0.9457,2646.7,2645.7,0.01299862]
[1645397739864,0.94576,2646.6,2645.8,1.98405108]
[1645397740266,0.94576,2646.6,2645.5,7.35576253]
[1645397740267,0.94576,2646.6,2645.7,1.98405108]
[1645397740665,0.94576,2646.6,2645.5,7.35576253]
[1645397740863,0.94579,2646.3,2646.1,1.98405108]
[1645397741463,0.94579,2646.3,2645.7,1.98405108]
[1645397741669,1.70082,2646.3,2645.5,7.35576253]
[1645397741966,1.892,2646.1,2645.5,7.35576253]
[1645397742166,0.755,2646.3,2645.5,7.35576253]
[1645397742464,0.755,2646.3,2645.6,1.98405108]
[1645397742465,0.00374959,2646.1,2645.6,1.98405108]
[1645397742667,0.00374959,2646.1,2645.5,7.35576253]
[1645397742864,0.00374959,2646.1,2646.0,1.98405108]
[1645397743119,0.45455959,2646.3,2645.9,1.98405108]
[1645397743312,0.90955959,2646.3,2646.0,1.98405108]
[1645397743523,0.90955959,2646.3,2645.6,1.98405108]
[1645397743713,0.90955959,2646.3,2645.9,1.98405108]
[1645397744113,2.15537959,2646.3,2645.9,1.98405108]
[1645397746015,2.15537959,2646.3,2645.5,7.35576253]
[1645397746215,0.94588,2646.1,2645.5,7.35576253]
[1645397747057,1.24582,2646.3,2645.5,9.33981361]
[1645397747262,0.00374936,2646.2,2645.6,1.98405108]
[1645397747456,0.00374936,2646.2,2645.5,7.35576253]
[1645397748057,0.00374936,2646.2,2645.5,9.33981361]
[1645397748259,1.24582,2646.3,2645.7,1.98405108]
[1645397748460,1.24582,2646.3,2645.8,1.98405108]
[1645397748461,0.0037494,2646.2,2645.8,1.98405108]
[1645397748858,0.94587,2646.1,2645.8,1.98405108]
[1645397749258,1.24587,2646.1,2645.5,7.35576253]
[1645397750261,0.94587,2646.1,2645.5,7.35576253]
[1645397750918,0.00374936,2646.2,2645.5,7.35576253]
[1645397751118,0.00374936,2646.2,2645.7,1.98405108]
[1645397751321,1.84532936,2646.3,2645.7,1.98405108]
[1645397751722,2.84532936,2646.3,2645.7,1.98405108]
[1645397752123,2.84532936,2646.3,2645.5,7.35576253]
[1645397752124,0.94596,2646.0,2645.5,7.35576253]
[1645397752321,0.946,2645.9,2645.5,7.35576253]
[1645397753523,0.51966,2646.0,2645.5,7.35576253]
[1645397753722,1.0,2646.3,2645.5,7.35576253]
[1645397753922,1.51966,2646.4,2645.5,7.35576253]
[1645397754122,0.81966,2646.4,2645.5,7.35576253]
[1645397754360,0.81966,2646.4,2645.7,1.98405108]
[1645397754564,0.94576,2646.3,2645.5,7.35576253]
[1645397754859,0.94576,2646.3,2645.5,9.33981361]
[1645397755766,0.94950931,2646.3,2645.7,0.00375015]
[1645397755965,0.94950931,2646.3,2646.1,1.98405108]
[1645397756362,0.94950931,2646.3,2645.9,1.98405108]
[1645397756563,0.94576,2646.3,2645.9,1.98405108]
[1645397756764,0.94576,2646.3,2645.5,7.35576253]
[1645397756964,0.94950958,2646.3,2646.1,1.98405108]
[1645397757163,0.94950958,2646.3,2645.7,0.00375043]
[1645397757764,0.94576,2646.3,2645.7,0.00308168]
[1645397758207,0.9495094,2646.3,2645.7,0.00683192]
[1645397758411,0.9495094,2646.3,2645.7,0.00036756]
[1645397758608,0.10095455,2646.2,2645.7,0.00036756]
[1645397759009,0.10095455,2646.2,2645.5,7.35576253]
[1645397759210,0.10095455,2646.2,2645.7,1.98405108]
[1645397759610,1.52235367,2646.2,2645.7,1.98405108]
[1645397759910,0.10095455,2646.2,2645.8,1.98405108]
[1645397760110,1.52235367,2646.2,2645.7,1.98405108]
[1645397760311,1.52235367,2646.2,2645.5,7.35576253]
[1645397760511,1.52235367,2646.2,2646.1,1.98405108]
[1645397760712,0.10095455,2646.0,2645.6,0.00375048]
[1645397760917,0.10095455,2646.0,2645.6,1.98780156]
[1645397761411,0.10095455,2646.0,2645.6,1.98405108]
[1645397761875,0.10095455,2646.0,2645.6,1.83780138]
[1645397761876,1.99255455,2645.9,2645.6,1.83780138]
[1645397762072,0.94575,2645.7,2645.6,1.83780138]
[1645397762270,1.04670455,2645.7,2645.6,1.83780138]
[1645397762669,1.04670455,2645.7,2645.6,1.83405108]
[1645397763775,0.10095455,2645.8,2645.6,1.83405108]
[1645397765375,1.04668455,2645.7,2645.6,1.83780129]
[1645397766210,1.04668455,2645.7,2645.6,1.83405108]
[1645397769116,1.04668455,2645.7,2645.5,7.35951276]
[1645397769561,1.04668455,2645.7,2645.6,1.83405108]
[1645397769865,0.1018639,2645.8,2645.6,1.83405108]
[1645397771262,0.1018639,2645.8,2645.6,1.83780129]
[1645397772262,0.1018639,2645.8,2645.6,1.83405108]
[1645397772459,0.1018639,2645.8,2645.6,1.83780129]
[1645397772861,0.1018639,2645.8,2645.6,0.00375021]
[1645397773315,1.52326302,2645.8,2645.6,0.00375021]
[1645397773519,0.10095455,2645.6,2645.5,7.35576253]
[1645397774217,0.10095455,2645.6,2645.5,3.8]
[1645397775018,0.1018639,2645.8,2645.5,3.8]
[1645397775222,2.01960243,2645.8,2645.7,1.83405108]
[1645397775720,2.01960243,2645.8,2645.7,1.60721437]
[1645397775721,0.1018639,2645.8,2645.7,1.60721437]
[1645397776721,2.02488955,2645.8,2645.7,1.60721437]
[1645397776972,1.0475639,2645.8,2645.7,1.60721437]
[1645397777563,2.97058955,2645.8,2645.7,1.60721437]
[1645397777862,1.0475639,2645.8,2645.7,1.60721437]
[1645397778063,1.0475639,2645.8,2645.7,1.55721437]
[1645397778261,2.97058955,2645.8,2645.7,1.55721437]
[1645397778463,1.0475639,2645.8,2645.7,1.55721437]
[1645397779069,4.939e-05,2645.8,2645.7,1.55721437]
[1645397779273,0.00374946,2646.1,2645.8,2.5]
[1645397779465,0.00374946,2646.1,2646.0,1.55721437]
[1645397779663,1.92302565,2646.4,2646.0,1.55721437]
[1645397779865,1.92302565,2646.4,2646.3,1.55721437]
[1645397780065,2.39717317,2646.9,2646.3,1.55721437]
[1645397780272,2.53537314,2647.1,2646.8,1.55721437]
[1645397780466,0.13819997,2647.1,2646.7,0.3066]
[1645397780719,2.53537314,2647.1,2646.7,0.3066]
[1645397781224,1.8906,2647.2,2647.0,1.55721437]
[1645397781430,3.78202,2647.7,2647.0,1.55721437]
[1645397781431,0.16301771,2648.0,2647.0,1.55721437]
[1645397781620,0.01493371,2648.0,2647.6,1.55721437]
[1645397782017,0.01493371,2648.0,2646.7,3.8189565]
[1645397782421,0.00427353,2648.3,2647.9,1.55721437]
[1645397782620,0.00427353,2648.6,2648.2,1.55721437]
[1645397782819,0.00427353,2648.4,2647.6,0.3741]
[1645397783018,0.00427353,2648.6,2648.3,1.55721437]
[1645397783217,3.19623089,2649.3,2648.5,1.55721437]
[1645397783218,0.00427353,2648.8,2648.5,1.55721437]
[1645397783420,0.00329233,2648.1,2647.7,3.5]
[1645397783619,0.00329233,2648.1,2647.9,1.55721437]
[1645397784034,9.233e-05,2648.1,2647.9,1.55721437]
[1645397784455,0.00427353,2649.0,2647.9,1.55721437]
[1645397784655,0.00427353,2649.0,2648.1,1.55721437]
[1645397784857,0.94479,2648.5,2648.1,1.55721437]
[1645397785061,0.55595351,2648.0,2647.5,3.13169997]
[1645397785257,0.55595351,2648.0,2647.5,0.13819997]
[1645397785556,0.55595351,2648.0,2647.7,1.55721437]
[1645397785757,0.55595351,2648.0,2647.5,0.13819997]
[1645397785959,0.55595351,2648.0,2647.7,1.55721437]
[1645397786460,0.55595351,2648.0,2647.5,0.13819997]
[1645397786664,0.55595351,2648.0,2647.7,1.55721437]
[1645397787358,0.55595351,2648.0,2647.5,0.13819997]
[1645397787561,0.55595351,2648.0,2647.9,1.55721437]
[1645397789013,1.50084351,2648.0,2647.5,0.13819997]
[1645397789218,1.50084351,2648.0,2647.6,1.55721437]
[1645397789813,1.50084351,2648.0,2647.9,1.55721437]
[1645397790213,1.50084351,2648.0,2647.5,3.93819997]
[1645397790414,1.50084351,2648.0,2647.9,1.55721437]
[1645397790614,2.44584351,2648.0,2647.9,1.55721437]
[1645397791871,0.55595351,2648.0,2647.9,1.55721437]
[1645397792268,0.0149817,2648.5,2648.0,2.5]
[1645397792468,0.00427353,2648.8,2648.4,1.55721437]
[1645397792670,2.93180004,2649.5,2648.1,3.5]
[1645397792671,0.00427353,2649.1,2648.1,3.5]
[1645397792868,0.00427353,2649.4,2648.6,1.55721437]
[1645397793072,0.00427353,2649.4,2648.2,0.2457]
[1645397793267,0.00427353,2649.4,2648.5,1.55721437]
[1645397794268,0.94900603,2649.4,2648.5,1.55721437]
[1645397794666,1.89366603,2649.4,2648.5,1.55721437]
[1645397794868,0.94453,2649.3,2648.5,1.55721437]
[1645397795066,3.78304603,2649.4,2648.5,1.55721437]
[1645397795067,1.88948,2649.0,2648.5,1.55721437]
[1645397795267,1.88948,2649.0,2647.8,0.55907057]
[1645397795467,0.00427353,2648.9,2648.3,0.00374678]
[1645397795916,0.94901353,2648.9,2648.3,0.00374678]
[1645397796517,0.94901353,2648.9,2648.2,1.55721437]
[1645397796716,0.94849595,2648.7,2648.3,0.0037465]
[1645397796922,3.38302595,2648.7,2648.3,0.0037465]
[1645397797126,0.81966,2648.6,2647.8,0.55907057]
[1645397797320,0.30427353,2648.5,2647.8,0.55907057]
[1645397797520,1.06893353,2648.5,2647.8,0.55907057]
[1645397797718,0.9451,2648.4,2648.0,1.55721437]
[1645397797921,0.545,2648.3,2648.0,1.55721437]
[1645397798121,1.49009,2648.3,2647.8,0.55907057]
[1645397798620,2.43519,2648.3,2647.8,0.55907057]
[1645397799361,5.93519,2648.3,2647.8,0.55907057]
[1645397799562,5.93519,2648.3,2646.4,0.1887]
[1645397799563,1.89042,2648.0,2646.4,0.1887]
[1645397799770,0.94532,2647.7,2646.4,1.55721437]
[1645397799964,0.545,2647.6,2646.4,1.55721437]
[1645397800164,8.12733,2647.6,2646.0,1.55721437]
[1645397800364,8.42733,2647.6,2646.0,1.55721437]
[1645397800665,0.94539,2647.3,2646.0,1.55721437]
[1645397800865,0.545,2647.2,2646.0,1.55721437]
[1645397801261,0.845,2647.2,2646.0,1.55721437]
[1645397801467,0.93111616,2647.2,2646.0,1.55721437]
[1645397801764,0.94553,2647.1,2645.5,0.76295704]
[1645397801964,0.94553,2647.1,2646.0,5.35721437]
[1645397801965,0.9456585,2646.8,2646.0,5.35721437]
[1645397802167,0.94565,2646.6,2646.0,5.35721437]
[1645397802966,0.94565,2646.6,2646.0,3.8]
[1645397803244,2.41103,2646.4,2646.0,3.8]
[1645397803441,0.545,2646.3,2646.0,3.8]
[1645397803939,1.49077,2646.3,2646.0,3.75]
[1645397804139,1.49077,2646.3,2646.1,0.00374932]
[1645397804340,2.49077,2646.3,2646.1,0.00374932]
[1645397804741,0.94574,2646.2,2646.1,0.00374932]
[1645397804945,1.49074,2646.2,2646.0,3.75]
[1645397805142,1.49074,2646.2,2646.1,0.00374932]
[1645397805342,6.8104,2646.2,2644.6,0.1889]
[1645397805556,0.94593,2645.6,2644.8,0.64647092]
[1645397805742,0.545,2645.5,2644.4,0.1889]
[1645397805942,0.545,2645.5,2645.0,0.64647092]
[1645397806969,0.94595,2645.4,2645.0,0.64647092]
[1645397807167,0.545,2645.3,2645.0,0.64647092]
[1645397807367,1.4909,2645.3,2645.0,0.64647092]
[1645397807977,1.89186,2645.7,2645.2,0.64647092]
[1645397808173,0.545,2645.5,2644.8,3.5]
[1645397808368,0.545,2645.9,2645.4,0.64647092]
[1645397808570,1.49067,2645.9,2645.8,0.64647092]
[1645397808769,1.49067,2645.9,2645.0,0.64647092]
[1645397808770,2.01033,2645.9,2645.0,0.64647092]
[1645397808970,2.01033,2645.9,2645.0,0.65022006]
[1645397808971,1.49441794,2645.9,2645.0,0.65022006]
[1645397809172,0.94572,2645.7,2645.0,0.65022006]
[1645397809370,0.94572,2645.7,2645.0,0.00374914]
[1645397809568,0.94589,2645.6,2645.0,0.00374914]
[1645397809770,0.94589,2645.6,2645.0,0.64647092]
[1645397809969,0.94589,2645.6,2644.7,0.56114741]
[1645397810176,0.94595,2645.4,2645.3,0.64647092]
[1645397811230,0.94595,2645.4,2645.2,0.65021996]
[1645397811630,1.89165,2645.6,2645.2,0.65021996]
[1645397812029,1.89165,2645.6,2645.5,0.64647092]
[1645397812231,0.94576,2645.6,2645.3,0.64647092]
[1645397812429,0.94587,2645.5,2645.3,0.65021994]
[1645397812635,0.94587,2645.5,2645.3,0.00374902]
[1645397813433,0.94587,2645.5,2645.2,0.64647092]
[1645397813636,0.9459,2645.4,2645.2,0.64647092]
[1645397813835,0.9459,2645.4,2645.3,0.00349698]
[1645397814234,0.94574,2645.8,2645.3,0.6499679]
[1645397814483,0.00349618,2645.9,2645.6,0.64647092]
[1645397814672,1.51966,2646.6,2645.6,0.64647092]
[1645397814673,0.545,2646.0,2645.6,0.64647092]
[1645397814870,0.94568,2645.8,2645.6,0.64647092]
[1645397815269,0.94568,2645.8,2645.6,0.59647092]
[1645397815474,0.00349631,2645.9,2645.4,0.0034969]
[1645397815668,0.00349631,2645.9,2645.6,0.59647092]
[1645397815870,2.83708,2646.0,2645.6,0.59647092]
[1645397816071,0.00349639,2645.9,2645.6,0.59647092]
[1645397816471,0.94917639,2645.9,2645.6,0.59647092]
[1645397816671,0.94917639,2645.9,2645.5,0.00349685]
[1645397817073,0.94568,2645.9,2645.4,1.16608256]
[1645397817271,0.94907941,2645.9,2645.6,0.0033998]
[1645397817472,0.94907941,2645.9,2645.6,0.59987072]
[1645397818224,0.94568,2645.9,2645.6,0.59647092]
[1645397818426,0.94787812,2645.9,2645.6,0.59647092]
[1645397819427,0.94568,2645.9,2645.6,0.59647092]
[1645397819627,0.94787812,2645.9,2645.6,0.59647092]
[1645397820632,0.94568,2645.9,2645.6,0.59647092]
[1645397821033,0.94927358,2645.9,2645.6,0.60006492]
[1645397821731,0.94927358,2645.9,2645.8,0.59647092]
[1645397821973,0.94564,2646.0,2645.8,0.59647092]
[1645397822169,0.00359358,2645.9,2645.8,0.59647092]
[1645397823069,0.94562,2646.0,2645.8,0.59647092]
[1645397823279,0.94790396,2646.0,2645.8,0.59647092]
[1645397824271,0.94562,2646.0,2645.8,0.59647092]
[1645397824473,0.94780586,2646.0,2645.8,0.59647092]
[1645397824671,1.89343586,2646.0,2645.8,0.59647092]
[1645397825631,1.89125,2646.0,2645.8,0.59647092]
[1645397825832,1.89474748,2646.0,2645.8,4.39647092]
[1645397826728,1.89125,2646.0,2645.8,4.39647092]
[1645397826928,1.89474748,2646.0,2645.8,4.39647092]
[1645397828032,1.89125,2646.0,2645.8,4.39647092]
[1645397828229,1.89475406,2646.0,2645.8,4.39647092]
[1645397829233,1.89125,2646.0,2645.8,4.39647092]
[1645397829491,1.89475406,2646.0,2645.8,4.39647092]
[1645397830289,1.89125,2646.0,2645.8,4.39647092]
[1645397830690,0.00350406,2646.0,2645.8,4.39647092]
[1645397831490,1.8913,2646.2,2645.8,4.39647092]
[1645397831693,0.00350362,2646.0,2645.8,3.8]
[1645397831892,0.00350362,2646.0,2645.9,0.59647092]
[1645397832693,2.43619,2646.3,2645.9,0.59647092]
[1645397833122,0.0035036,2646.1,2645.8,3.8]
[1645397833523,0.0035036,2646.1,2646.0,0.59647092]
[1645397833923,1.49064,2646.3,2646.0,0.59647092]
[1645397834123,1.49064,2646.3,2646.2,0.59647092]
[1645397835729,0.00350348,2646.4,2646.3,0.59]
[1645397835930,0.545,2647.3,2646.4,2.0]
[1645397836128,0.545,2647.3,2647.2,0.59647092]
[1645397836525,3.50427291,2647.9,2647.2,0.59647092]
[1645397836725,1.49023,2647.7,2647.2,0.59647092]
[1645397836985,1.49023,2647.7,2646.4,2.1887]
[1645397837188,1.49023,2647.7,2646.9,0.59647092]
[1645397837482,2.43544,2647.7,2646.9,0.59647092]
[1645397838895,2.43544,2647.7,2646.9,10.15047092]
[1645397839085,0.00353363,2647.4,2646.9,10.15047092]
[1645397839887,1.89068,2647.5,2646.9,9.554]
[1645397840089,1.89068,2647.5,2646.9,10.15047092]
[1645397840288,0.0035337,2647.3,2646.9,10.15047092]
[1645397840629,0.94543,2647.2,2646.9,9.554]
[1645397840825,0.94543,2647.2,2647.1,0.59647092]
[1645397841030,0.545,2647.2,2646.9,9.554]
[1645397841231,14.03596524,2647.2,2646.9,9.554]
[1645397841435,9.33243616,2647.2,2646.9,9.554]
[1645397841728,10.28139787,2647.2,2646.9,9.554]
[1645397842327,8.38653616,2647.2,2647.0,0.59647092]
[1645397842826,8.30396171,2647.2,2647.0,0.59647092]
[1645397843628,7.355,2647.2,2647.0,0.59647092]
[1645397843829,7.35854169,2647.2,2647.0,0.59647092]
[1645397844230,7.35854169,2647.2,2646.9,9.554]
[1645397844474,7.35854169,2647.2,2647.0,0.59647092]
[1645397844677,7.35854169,2647.2,2646.9,9.554]
[1645397844678,0.545,2647.2,2647.1,0.59647092]
[1645397845074,0.49854407,2647.2,2647.1,0.59647092]
[1645397845874,0.495,2647.2,2647.1,0.59647092]
[1645397849536,0.495,2647.2,2647.1,0.59000886]
[1645397849837,0.495,2647.2,2647.1,4.39000886]
[1645397851140,8.33393291,2648.1,2647.1,4.39000886]
[1645397851141,0.00366469,2647.3,2647.1,4.39000886]
[1645397851352,6.469e-05,2647.3,2647.1,4.39000886]
[1645397851978,6.469e-05,2647.3,2647.2,5.0]
[1645397852373,0.00427291,2648.3,2647.1,5.33482886]
[1645397852572,4.045,2648.8,2647.1,5.33482886]
[1645397852573,4.04927291,2648.8,2647.1,5.33482886]
[1645397852772,4.04927291,2648.8,2648.3,0.59000886]
[1645397852975,0.54927291,2648.8,2648.3,0.59000886]
[1645397853174,0.54927291,2648.8,2647.1,3.8]
[1645397853373,0.94503,2648.5,2647.1,3.8]
[1645397853576,0.00427291,2648.4,2647.1,3.8]
[1645397854579,0.00427291,2648.4,2648.0,0.59000886]
[1645397854776,1.89006,2648.5,2648.0,0.59000886]
[1645397854975,1.89006,2648.5,2647.5,0.59000886]
[1645397854976,0.94516,2648.2,2647.5,0.59000886]
[1645397855176,0.545,2648.1,2647.1,3.8]
[1645397855376,0.545,2648.1,2648.0,0.59000886]
[1645397856029,0.00373994,2647.7,2647.1,3.8]
[1645397856229,0.00373994,2647.7,2647.5,0.59000886]
[1645397856830,0.545,2648.1,2647.5,0.59000886]
[1645397857027,0.00373994,2647.7,2647.5,0.59000886]
[1645397858029,0.545,2648.1,2647.5,0.59000886]
[1645397858229,0.00373994,2647.7,2647.5,0.59000886]
[1645397859234,0.495,2648.1,2647.5,0.59000886]
[1645397859475,0.495,2648.1,2648.0,0.59000886]
[1645397860475,0.545,2648.5,2647.8,0.59000886]
[1645397860676,0.0034867,2648.2,2647.4,3.5]
[1645397860875,0.0034867,2648.2,2648.1,0.59000886]
[1645397861676,0.00427291,2648.4,2648.1,0.59000886]
[1645397861877,0.00348665,2648.3,2648.0,3.8]
[1645397862076,0.00348665,2648.3,2648.2,0.59000886]
[1645397862876,0.545,2648.5,2648.2,0.59000886]
[1645397863135,0.0034866,2648.4,2648.2,0.59000886]
[1645397863932,0.545,2648.5,2648.2,0.59000886]
[1645397864234,0.00348658,2648.4,2648.2,0.59000886]
[1645397865232,0.545,2648.5,2648.2,0.59000886]
[1645397865436,0.00350077,2648.4,2648.2,0.59000886]
[1645397866335,0.545,2648.5,2648.0,3.8]
[1645397866536,0.00427291,2648.4,2648.2,0.59000886]
[1645397866736,0.00350077,2648.4,2648.2,0.59000886]
[1645397867584,0.545,2648.5,2648.2,0.59000886]
[1645397867779,0.00427291,2649.1,2648.0,3.8]
[1645397867780,0.00427291,2649.1,2648.4,0.59000886]
[1645397867983,0.01400097,2648.8,2648.0,12.3]
[1645397868181,9.7e-07,2648.8,2648.7,0.59000886]
[1645397868382,9.7e-07,2648.8,2648.7,4.09000886]
[1645397868779,0.00427291,2649.4,2648.7,4.09000886]
[1645397868984,0.00427291,2649.4,2648.7,3.5]
[1645397869189,0.00427291,2649.4,2649.3,0.59000886]
[1645397869388,0.00427291,2649.8,2649.3,4.09000886]
[1645397869587,0.00427291,2649.8,2649.7,0.59000886]
[1645397869782,0.545,2650.2,2649.7,0.59000886]
[1645397870088,0.00427291,2650.1,2649.7,0.59000886]
[1645397872629,7.38373884,2649.9,2649.7,0.59000886]
[1645397872829,0.01495314,2650.3,2649.8,2.5]
[1645397873029,0.01495314,2650.3,2650.2,0.59000886]
[1645397873626,0.5,2650.4,2650.2,0.59000886]
[1645397873827,7.38,2650.9,2650.2,0.59000886]
[1645397874027,7.38,2650.9,2650.7,0.59000886]
[1645397875774,7.38,2650.9,2650.0,3.5]
[1645397875977,7.38,2650.9,2650.4,0.59000886]
[1645397876175,7.38,2650.9,2650.7,0.0008]
[1645397877575,7.38374011,2650.9,2650.7,0.0008]
[1645397877780,7.38374011,2650.9,2650.8,0.59000886]
[1645397878224,7.38374011,2650.9,2650.7,0.0008]
[1645397878423,7.38,2650.9,2650.7,0.0008]
[1645397878923,7.38,2650.9,2650.8,0.59000886]
[1645397879528,0.00374009,2651.0,2650.8,0.77850886]
[1645397879725,8.3648267,2652.0,2650.9,0.1885]
[1645397879922,0.0148267,2652.0,2650.9,0.1885]
[1645397880122,0.0148267,2652.0,2651.6,0.59000886]
[1645397880926,0.0148267,2652.0,2651.6,0.77850886]
[1645397881424,0.00241056,2651.8,2651.6,0.59000886]
[1645397881891,0.00241056,2651.8,2651.7,0.94316]
[1645397882082,0.0148267,2652.0,2651.6,0.59000886]
[1645397882283,0.0148267,2652.0,2651.9,0.59000886]
[1645397882891,0.01442188,2652.2,2652.0,2.5]
[1645397883087,0.05407033,2652.8,2652.0,2.5]
[1645397883489,1.06466,2653.6,2652.7,0.59000886]
[1645397883685,8.44466,2653.6,2652.1,3.5]
[1645397883882,8.44466,2653.6,2651.9,3.5]
[1645397884285,8.44466,2653.6,2652.0,1.8860939]
[1645397884487,7.925,2653.6,2653.2,0.59000886]
[1645397885184,7.925,2653.6,2652.1,3.5]
[1645397885185,7.38,2653.6,2653.4,0.59000886]
[1645397886031,7.38240847,2653.6,2653.4,0.09000886]
[1645397886940,0.007,2653.7,2653.4,0.09000886]
[1645397887134,0.007,2653.7,2652.6,3.63819997]
[1645397887434,0.00374915,2653.6,2652.6,3.63819997]
[1645397887633,0.00374915,2653.6,2652.6,3.59143217]
[1645397888233,0.007,2653.7,2653.5,0.09000886]
[1645397888433,0.07122706,2653.6,2653.5,0.09000886]
[1645397889481,0.007,2653.7,2653.5,0.09000886]
[1645397889784,0.00939975,2653.7,2653.5,0.09000886]
[1645397890587,0.007,2653.7,2653.5,0.09000886]
[1645397890782,0.01075328,2653.7,2653.5,0.09000886]
[1645397891684,0.01075328,2653.7,2653.5,0.09080886]
[1645397891882,0.007,2653.7,2653.5,0.09080886]
[1645397892188,0.01075328,2653.7,2653.5,0.09080886]
[1645397893131,0.007,2653.7,2653.5,0.09080886]
[1645397893328,0.01075328,2653.7,2653.5,0.09080886]
[1645397894130,0.007,2653.7,2653.5,0.09080886]
[1645397894529,0.01075328,2653.7,2653.5,0.09080886]
[1645397895333,0.007,2653.7,2653.5,0.09080886]
[1645397895638,0.01075328,2653.7,2653.5,0.09080886]
[1645397895842,0.01075328,2653.7,2653.5,3.8]
[1645397895843,0.545,2653.6,2653.5,3.8]
[1645397896039,0.545,2653.6,2651.9,0.56244347]
[1645397896040,0.1816,2653.5,2651.9,0.56244347]
[1645397896238,0.1816,2653.5,2651.8,0.00375605]
[1645397896239,7.32966,2653.2,2651.8,0.00375605]
[1645397896543,6.81,2652.9,2651.8,0.00375605]
[1645397896735,6.81,2652.1,2651.8,0.00375605]
[1645397896992,6.81,2651.9,2651.0,0.2036]
[1645397897198,6.81,2651.5,2651.0,0.2036]
[1645397897491,0.545,2651.4,2651.0,0.2036]
[1645397897692,1.545,2651.4,2651.0,0.2036]
[1645397897891,11.76,2651.1,2651.0,0.2036]
[1645397898088,0.94434,2651.0,2650.0,0.9948]
[1645397898298,1.48937,2650.9,2650.0,0.9948]
[1645397898489,0.00423374,2650.8,2650.0,0.9948]